Cogmind - Beta 15 @@@ ROGUE MODE // 2025.06.25 @ 19:38:48 Player: LightKnight Result: Destroyed by D-53 Grenadier with Mini Grenade Launcher Performance ------------- Evolutions (0) 0 Regions Visited (4) 800 Robots Destroyed (29) 145 Value Destroyed (652) 652 Prototype IDs (0) 0 Alien Tech Used (0) 0 Bonus (0) 0 TOTAL SCORE: 1597 Bonus ------- None Cogmind --------- Core Integrity 0/250 Matter 280/300 Energy 157/160 System Corruption 0% Temperature Cool (1) Movement Walking (130) Location -9/Mines Parts ------- > --- POWER (1) -------- Light Nuclear Core > --- PROPULSION (2) --- Carbon-fiber Leg Makeshift Leg > --- UTILITY (2) ------ Improved Heat Sink Large Storage Unit > --- WEAPON (2) ------- Makeshift Laser Beam Cannon > --- INVENTORY (15) --- Light Nuclear Core Light Treads Light Treads Light Treads Light Treads Light Treads Aluminum Leg High-capacity Storage Unit Light Armor Plating EM Pulse Gun Assault Rifle Light Assault Rifle Rocket Launcher Datajack Ripper Peak State ------------ > --- POWER ------------ Light Nuclear Core > --- PROPULSION ------- Carbon-fiber Leg Makeshift Leg > --- UTILITY ---------- Improved Heat Sink Large Storage Unit > --- WEAPON ----------- Beam Cannon Ripper > --- INVENTORY -------- Light Nuclear Core Light Treads Light Treads Light Treads Light Treads Light Treads Aluminum Leg High-capacity Storage Unit Light Armor Plating EM Pulse Gun Makeshift Laser Assault Rifle Light Assault Rifle Rocket Launcher Datajack [Rating: 21] Favorites ----------- Power Ion Engine Engine Ion Engine Power Core Light Nuclear Core Propulsion Aluminum Leg Leg Aluminum Leg Utility Improved Heat Sink Device Improved Heat Sink Storage Small Storage Unit Weapon Beam Cannon Energy Gun EM Pulse Gun Energy Cannon Beam Cannon Ballistic Gun Light Assault Rifle Slashing Weapon Ripper Special Melee Weapon Datajack Build | -11 -10 -10 -10 -9 ------- Run | Yrd Mat Min Exi Min Slots Evolved . | . . . . . Power . | . . . . . Propulsion . | . . . . . Utility . | . . . . . Weapon . | . . . . . Parts Attached 15 | . 6 1 8 . Power 2 | . 1 . 1 . Engine 1 | . 1 . . . Core 1 | . . . 1 . Reactor . | . . . . . Propulsion 3 | . . 1 2 . Treads . | . . . . . Leg 3 | . . 1 2 . Wheel . | . . . . . Hover . | . . . . . Flight . | . . . . . Utility 3 | . 1 . 2 . Device 1 | . 1 . . . Storage 2 | . . . 2 . Processor . | . . . . . Hackware . | . . . . . Protection . | . . . . . Artifact . | . . . . . Weapon 7 | . 4 . 3 . Energy Gun 3 | . 2 . 1 . Energy Cannon 1 | . 1 . . . Ballistic Gun 1 | . 1 . . . Ballistic Cannon . | . . . . . Launcher . | . . . . . Special Weapon . | . . . . . Impact Weapon . | . . . . . Slashing Weapon 1 | . . . 1 . Piercing Weapon . | . . . . . Special Melee Weapon 1 | . . . 1 . Unidentified Prototypes . | . . . . . Parts Lost 2 | . 2 . . . Power . | . . . . . Propulsion . | . . . . . Utility . | . . . . . Weapon 2 | . 2 . . . Highest Loss Streak 1 | . 1 . . . To Critical Strikes . | . . . . . Average Backups 9 | . 7 7 10 15 Power 1 | . 1 . 1 1 Propulsion 3 | . 4 2 3 6 Utility . | . . 1 1 2 Weapon 3 | . 1 2 4 5 Tool/Special . | . . . . . Unused Backups 20 | . 6 3 . 11 Power 4 | . 2 1 . 1 Propulsion 9 | . 2 2 . 5 Utility 3 | . 1 . . 2 Weapon 4 | . 1 . . 3 Tool/Special . | . . . . . Average Slot Usage (%) 97 | . 91 100 100 100 Engine 11 | . 14 14 9 . Core 2 | . . . 4 14 Leg 28 | . 28 28 28 28 Device 11 | . 5 14 14 14 Storage 14 | . 14 14 14 14 Energy Gun 8 | . 15 14 1 14 Energy Cannon 10 | . 3 14 13 14 Ballistic Gun 2 | . 8 . . . Slashing Weapon 1 | . . . 3 . Special Melee Weapon 4 | . . . 9 . Peak Build Rating 21 | . 9 10 21 21 Average Rating 11 | . 7 9 14 21 On Entrance 10 | 6 6 9 10 21 Naked Turns . | . . . . . Heaviest Build 32 | 13 16 16 32 31 Greatest Support 35 | 20 20 20 35 35 Greatest Overweight (x) . | . . . . . Average Overweight (x) . | . . . . . Largest Inventory Capacity 15 | . 8 8 15 15 Average Capacity 9 | . 8 8 11 15 Most Carried 15 | . 8 8 15 15 Average Carried 9 | . 7 7 10 15 Final Capacity 15 | 8 8 8 15 15 Final Carried 15 | 6 8 8 15 15 Class Distribution -------------------- 89% | Mutant 10% | Scavenger-Mutant Dominant Class ---------------- Mutant | -10/Materials Mutant | -10/Mines Mutant | -10/Exiles Mutant | -9/Mines Resources | -11 -10 -10 -10 -9 ----------- Run | Yrd Mat Min Exi Min Matter Collected 422 | 200 132 10 80 . Remotely . | . . . . . Salvage Created 1235 | . 678 251 306 . Parts 68 | . 47 12 9 . Haulers Intercepted 2 | . 2 . . . Recyclers Shooed 1 | . 1 . . . Parts Field Recycled . | . . . . . Retrieved Matter . | . . . . . Parts Self-Destructed . | . . . . . Prevented . | . . . . . Kills | -11 -10 -10 -10 -9 ------- Run | Yrd Mat Min Exi Min Combat Hostiles Destroyed 22 | . 17 5 . . Guns 16 | . 14 2 . . Cannons 5 | . 2 3 . . AOE 1 | . 1 . . . Classes Destroyed 6 | . 6 . . . Worker 1 | . 1 . . . Builder 1 | . 1 . . . Hauler 2 | . 2 . . . Watcher 3 | . 3 . . . Swarmer 9 | . 9 . . . Grunt 13 | . 8 5 . . Best Kill Streak 5 | . 5 2 . . Combat Bots Only 5 | . 5 2 . . Max Kills in Single Turn 2 | . 2 1 . . Gunslinging . | . . . . . Exploded 1 | . 1 . . . Melee . | . . . . . Uniques/NPCs Destroyed . | . . . . . Combat | -11 -10 -10 -10 -9 -------- Run | Yrd Mat Min Exi Min Hostile Shots Fired 84 | . 68 12 . 4 Missed 23 | . 17 4 . 2 Hits 61 | . 51 8 . 2 Projectile 61 | . 51 8 . 2 AOE 1 | . . . . 1 Critical Strikes 1 | . 1 . . . Damage Taken 709 | . 548 108 . 53 Core 261 | . 147 71 . 43 Absorbed by Shields . | . . . . . Core Remaining (%) 100 | 100 . . . . Volleys Fired 181 | . 97 12 72 . Largest 2 | . 2 2 1 . Hottest 100 | . 100 100 60 . Shots Fired 251 | . 157 22 72 . Gun 187 | . 148 12 27 . Cannon 64 | . 9 10 45 . Launcher . | . . . . . Special . | . . . . . Kinetic 69 | . 69 . . . Thermal 64 | . 9 10 45 . Explosive . | . . . . . Electromagnetic 118 | . 79 12 27 . Robot Hit Streak 8 | . 8 5 8 . Robot Miss Streak 6 | . 6 2 3 . Penetration Max . | . . . . . Secondary Targets 2 | . 2 . . . Max Gunslinging Chain 1 | . 1 . . . Shots Hit Robots 128 | . 87 13 28 . Core Hits 62 | . 41 8 13 . Critical Kills . | . . . . . Critical Parts Destroyed . | . . . . . Critical Strikes 2 | . 2 . . . Corrupt 2 | . 2 . . . Melee Attacks 11 | . . . 11 . Impact . | . . . . . Slashing 8 | . . . 8 . Piercing . | . . . . . Sneak Attacks 3 | . . . 3 . Combat Hostiles . | . . . . . Follow-up Attacks . | . . . . . Damage Inflicted 1882 | . 1215 213 454 . Guns 996 | . 914 82 . . Cannons 704 | . 125 125 454 . Explosions 170 | . 170 . . . Melee . | . . . . . Ramming 12 | . 6 6 . . Kinetic 349 | . 349 . . . Thermal 874 | . 295 125 454 . Explosive . | . . . . . Electromagnetic 647 | . 565 82 . . Impact . | . . . . . Slashing . | . . . . . Piercing . | . . . . . Highest Corruption . | . . . . . Average Corruption . | . . . . . Corruption Purged . | . . . . . Corruption Blocked . | . . . . . Overload Shots . | . . . . . Overflow Damage 15 | . 14 . 1 . Projectiles 1 | . . . 1 . Explosions 14 | . 14 . . . Melee . | . . . . . Knockbacks . | . . . . . Impact . | . . . . . Kinetic . | . . . . . Secondary . | . . . . . Self-Inflicted Damage . | . . . . . Shots . | . . . . . Rammed . | . . . . . Targets Rammed 4 | . 3 1 . . Kicked 4 | . 3 1 . . Crushed . | . . . . . Highest Temperature 132 | . 132 15 . . Average Temperature 27 | . 32 8 . . Received Heat Transfer 201 | . 138 63 . . Siege Activations . | . . . . . Martial Activations . | . . . . . Shielding Activations . | . . . . . Robots Disrupted . | . . . . . Combat Hostiles . | . . . . . Robots Corrupted . | . . . . . Combat Hostiles . | . . . . . Parts Fried . | . . . . . Impact Corruptions . | . . . . . Robots Melted . | . . . . . Combat Hostiles . | . . . . . Parts Melted 2 | . 1 . 1 . Heat Transferred 1830 | . 609 259 962 . Parts Sabotaged . | . . . . . Parts Stolen . | . . . . . Parts Stripped . | . . . . . Power Chain Reactions 3 | . 3 . . . Alert | -11 -10 -10 -10 -9 ------- Run | Yrd Mat Min Exi Min Maximum Alert Level 1 | . 1 . . . Low Security (%) 97 | . 95 100 . 100 Level 1 2 | . 4 . . . Level 2 . | . . . . . Level 3 . | . . . . . Level 4 . | . . . . . Level 5 . | . . . . . High Security . | . . . . . Max Security . | . . . . . Peak Influence 211 | . 211 77 . . Initial 77 | . . 77 . . Average 73 | . 100 27 . . Influence Increases 762 | . 607 150 5 . Destroy 0b10 Robot/C 440 | . 340 100 . . Destroy 0b10 Robot/NC 40 | . 35 . 5 . Destroy Leader 120 | . 90 30 . . Successful Hack 27 | . 22 5 . . Select Force Hacks 60 | . 60 . . . Disable Machine 15 | . . 15 . . Destroy Structure 15 | . 15 . . . Lose Combat Pursuer 45 | . 45 . . . Influence Decreases 762 | . 408 308 46 . Entered New Map 163 | . . 122 41 . Time Decay 579 | . 388 186 5 . Lost Part 20 | . 20 . . . Squads Dispatched 5 | . 5 . . . Investigation 3 | . 3 . . . Extermination . | . . . . . Reinforcement 2 | . 2 . . . Assault . | . . . . . Garrison . | . . . . . Intercept . | . . . . . Searches Triggered . | . . . . . Construction Impeded . | . . . . . Haulers Reinforced . | . . . . . Active Scanning Responses . | . . . . . Cargo Convoy Interrupts . | . . . . . Stealth | -11 -10 -10 -10 -9 --------- Run | Yrd Mat Min Exi Min Distress Signals 2 | . 2 . . . Communications Jammed . | . . . . . Distress Signals . | . . . . . Times Spotted 44 | . 31 6 . 7 Peak Tracking Total 20 | . 4 2 . 20 Tactical Retreats 4 | . 3 . . 1 Traps | -11 -10 -10 -10 -9 ------- Run | Yrd Mat Min Exi Min Traps Triggered 1 | . 1 . . . Indirectly . | . . . . . Trap Hack Attempts . | . . . . . Triggered . | . . . . . Disarmed . | . . . . . Reprogrammed . | . . . . . Reused . | . . . . . Traps Extracted . | . . . . . Installed . | . . . . . Triggered . | . . . . . Machines | -11 -10 -10 -10 -9 ---------- Run | Yrd Mat Min Exi Min Machines Disabled 2 | . . 1 1 . Max in Single Turn 1 | . . 1 1 . Machines Repaired . | . . . . . Machines Dismantled . | . . . . . Machines Sabotaged . | . . . . . Overloaded Fab Kills . | . . . . . Hacking | -11 -10 -10 -10 -9 --------- Run | Yrd Mat Min Exi Min Machines Accessed 10 | . 8 1 1 . Terminals 7 | . 6 1 . . Fabricators . | . . . . . Repair Stations . | . . . . . Recycling Units 2 | . 2 . . . Scanalyzers . | . . . . . Garrison Access . | . . . . . Total Hacks 20 | . 18 1 1 . Successful 10 | . 8 1 1 . Failed 10 | . 10 . . . Catastrophic 1 | . 1 . . . Database Lockouts . | . . . . . Manual 16 | . 15 1 . . Terminals 17 | . 16 1 . . Fabricators . | . . . . . Repair Stations . | . . . . . Recycling Units 2 | . 2 . . . Scanalyzers . | . . . . . Garrison Access . | . . . . . Terminal Hacks 5 | . 3 1 1 . Record 1 | . . . 1 . Robot Analysis 2 | . 2 . . . Locate Traps 1 | . 1 . . . Investigation Status 1 | . . 1 . . Fabricator Hacks . | . . . . . Repair Station Hacks . | . . . . . Recycling Unit Hacks . | . . . . . Scanalyzer . | . . . . . Garrison Access Hacks . | . . . . . Unauthorized Hacks 5 | . 5 . . . Terminals 3 | . 3 . . . Botnet 3 | . 3 . . . Fabricators . | . . . . . Repair Stations . | . . . . . Recycling Units 2 | . 2 . . . Tunnel 2 | . 2 . . . Scanalyzers . | . . . . . Garrison Access . | . . . . . Data Cores Recovered . | . . . . . Used . | . . . . . Hacking Detections 7 | . 6 1 . . Full Trace Events . | . . . . . Feedback Events . | . . . . . Feedback Blocked . | . . . . . Robot Schematics Acquired . | . . . . . Robots Built . | . . . . . Authchips . | . . . . . Time . | . . . . . Total Robot Build Rating . | . . . . . Part Schematics Acquired . | . . . . . Parts Built . | . . . . . Authchips . | . . . . . Time . | . . . . . Total Part Build Rating . | . . . . . Parts Repaired . | . . . . . Time . | . . . . . Parts Recycled . | . . . . . Recycled Matter . | . . . . . Retrieved Matter . | . . . . . Retrieved Components . | . . . . . Parts Scanalyzed . | . . . . . Part Schematics Acquired . | . . . . . Parts Damaged . | . . . . . Bothacking | -11 -10 -10 -10 -9 ------------ Run | Yrd Mat Min Exi Min Used RIF Installer . | . . . . . Robots Hacked . | . . . . . Non-combat . | . . . . . Combat . | . . . . . Robot Hacks Applied . | . . . . . Relay Couplers Released . | . . . . . Fabnet Peak Effective % . | . . . . . Robots Rewired 3 | . . . 3 . Allies Hacked . | . . . . . Hacks Repelled . | . . . . . Allies | -11 -10 -10 -10 -9 -------- Run | Yrd Mat Min Exi Min Total Allies 3 | . . . 3 . Largest Group 3 | . . . 3 3 Highest-Rated Group 24 | . . . 24 24 Highest-Rated Ally 8 | . . . 8 8 Total Orders 4 | . . . 4 . STAY 2 | . . . 2 . FOLLOW 2 | . . . 2 . Ally Attacks 3 | . . . . 3 Total Damage 12 | . . . . 12 Kills . | . . . . . Allies Corrupted . | . . . . . Allies Melted . | . . . . . Intel | -11 -10 -10 -10 -9 ------- Run | Yrd Mat Min Exi Min Active Infowar (turns) . | . . . . . Robot Analysis Total 2 | . 2 . . . Derelict Logs Recovered 1 | . . 1 . . Drone Launches . | . . . . . Drone Recoveries . | . . . . . Exploration | -11 -10 -10 -10 -9 ------------- Run | Yrd Mat Min Exi Min Turns Passed 3093 | . 987 557 1526 23 Spaces Moved 2113 | 1 604 429 1061 18 Core . | . . . . . Treads . | . . . . . Legs 2113 | 1 604 429 1061 18 Wheels . | . . . . . Hover . | . . . . . Flight . | . . . . . Fastest Speed 120 | 120 120 120 120 130 Average Speed 122 | 120 120 120 125 130 Slowest Speed 130 | 120 120 120 130 130 Overloaded Moves . | . . . . . Propulsion Burnouts . | . . . . . Robots Hopped . | . . . . . Potential Cave-ins . | . . . . . Cave-ins Triggered . | . . . . . Exploration Rate (%) 55 | 3 92 84 95 5 Regions Visited 4 Branch Regions 3 Pre-discovered Areas 4 | . 2 1 1 . Known Exits Taken . | . . . . . Unknown Exits Taken 4 | 1 1 1 1 . Scrap Searched 1 | . . 1 . . Spaces Dug 1 | . . . 1 . Terrain Destroyed 16 | . 15 . 1 . Melee 1 | . . . 1 . Projectile . | . . . . . AOE 15 | . 15 . . . Terrain Rammed . | . . . . . Walls Destroyed . | . . . . . Machines Disabled . | . . . . . Actions | -11 -10 -10 -10 -9 --------- Run | Yrd Mat Min Exi Min Total 2361 | . 722 451 1170 18 Wait 6 | . 4 2 . . Move 2109 | . 603 428 1060 18 Hop . | . . . . . Pick Up 15 | . 5 3 7 . Fast Attach 2 | . 1 . 1 . Attach 2 | . 2 . . . Detach 1 | . . . 1 . Swap 14 | . 4 1 9 . Drop 12 | . 3 4 5 . Fire 181 | . 97 12 72 . Melee 11 | . . . 11 . Ram . | . . . . . Kick 4 | . 3 1 . . Crush . | . . . . . Escape Stasis . | . . . . . Rewire 4 | . . . 4 . Trap . | . . . . . Miscellaneous . | . . . . . Route ------- -11/Scrapyard -10/Materials (discovered 4 exits: [*Mat x2] / *Min x2) -10/Mines (discovered 4 exits: [*Mat x2] / *Exi / [*Sub]) -10/Exiles (discovered 2 exits: [*Min x2]) -9/Mines History --------- Turn | Location | Event 1 | -11/Scrapyard | Discovered new exit (range 0) 1 | -11/Scrapyard | Entered Materials 85 | -10/Materials | Discovered new exit (range 11) 116 | -10/Materials | Discovered new exit (range 8) 195 | -10/Materials | Discovered new exit (range 16) 303 | -10/Materials | Build established: Mutant 627 | -10/Materials | Core integrity fell below 50% 754 | -10/Materials | Discovered new exit (range 16) 988 | -10/Materials | Entered Mines 990 | -10/Mines | Discovered new exit (range 9) 1092 | -10/Mines | Discovered new exit (range 9) 1181 | -10/Mines | Received a Rocket Launcher from a helpful Derelict 1233 | -10/Mines | Found a hidden stash of uninstalled traps 1253 | -10/Mines | A weapon hastily lodged in a ceiling crevice suddenly fell to the ground 1275 | -10/Mines | Learned Materials stockpile data 1403 | -10/Mines | Discovered new exit (range 15) 1447 | -10/Mines | Core integrity fell below 20% 1540 | -10/Mines | Deemed a non-threat by the Exiles lab entrance 1540 | -10/Mines | Discovered new exit (range 5) 1545 | -10/Mines | Entered Exiles 1545 | -10/Exiles | Found Exiles lab destroyed 1617 | -10/Exiles | Discovered new exit (range 14) 1720 | -10/Exiles | Learned location of Zion (-6) 2436 | -10/Exiles | Build established: Scavenger-Mutant 2762 | -10/Exiles | Build established: Mutant 3056 | -10/Exiles | Discovered new exit (range 10) 3071 | -10/Exiles | Entered Mines 3071 | -9/Mines | Accompanied by 3 allies 3075 | -9/Mines | Assembled infested the area 3094 | -9/Mines | Destroyed by D-53 Grenadier with Mini Grenade Launcher Last Messages --------------- 02542_ Acquired 40 matter. 02551_ Acquired Lgt. Treads. 02564_ Acquired Lgt. Assault Rifle. 02567_ Acquired Lgt. Nuclear Core. 02568_ Acquired 10 matter. 02576_ Dropped Ion Engine. 02599_ Acquired Lgt. Treads. 02647_ Components damaged. 03056_ EXIT=FOUND LOCATION=UNKNOWN GOAL=ESCAPE 03072_ K-01 Serf collects debris. 03075_ ALERT: Infestation in the mines, dispatching Demolisher response squad. 03084_ K-01 Serf cleans the Laser Drill. 03089_ K-01 Serf collects debris. 03093_ C-30 ARC bursts open, deploying its payload. 03093_ D-53 Grenadier unfolds itself. 03093_ Mercenary 1c destroyed. 03094_ K-01 Serf collects debris. Map ----- +----------------------------------------------------+ | ???????????????????????????????????? | | ???????????????????????????????????? | | ???????????????????????????????????? | | ???????????????????????????????????? | | ???????????????????????????????????? | | ???????????????????????????????????? | | ?????????????????????????????? ????? | | ?????????????????????????????? ????? | | ?????????????????????????????? ????? | | ?????????????????????????????? ????? | | ????????????????????????????? ????? | | ????????????????????????????? ????? | | ????????????????????????????? ????? | | ????????????????????????????? #????? | | ????????????????????????????? #????? | | ????????????????????????????? ?????? | | ???????????????????????????## ?????? | | ??????????????????????????? ?????? | | ???????????????????????????# ?????? | | ???????????????????????????# #?????? | | ???????????????????????????# #?????? | | ????????????????????????#### #?????? | | ????????????????????????#%= #?????? | | ????????????????????????#=####?????? | | ????????????????????????#[#????????? | | ????????????????????????#@#????????? | | ????????????????????##### ####?????? | | ????????????????????# #?????? | | ????????????????????# g #?????? | | ????????????????????# #?????? | | ????????????????????#""" #?????? | | ????????????????????#""" #?????? | | ????????????????????#""" d #?????? | | ????????????????????# kk #?????? | | ????????????????????####d ####?????? | | ???????????????????????#% #????????? | | ??????????????????????? ?????????? | | ??????????????????????? ?????????? | | ?????????????????????? ##?????????? | | ?????????????????????? ???????????? | | ?????????????????????# ???????????? | | ?????????????????????# ???????????? | | ???????????????????????????????????? | | ???????????????????????????????????? | | ???????????????????????????????????? | | ???????????????????????????????????? | | ???????????????????????????????????? | | ???????????????????????????????????? | | ???????????????????????????????????? | | ???????????????????????????????????? | +----------------------------------------------------+ Best States ------------- Heat Dissipation 39 Energy Generation 14 Energy Capacity 250 Matter Stores 300 Matter Capacity 300 Sight Range 16 Terrain Scan Density 10 Evasion (%) 55 Item Schematics ----------------- None Robot Schematics ------------------ None Fabricated ------------ Nothing Repaired ---------- Nothing Alien Tech Used ----------------- None Achievements -------------- None Challenges ------------ None Game ------ Seed TerrorMagneticWarhead Manual? 0 Play Time 00:14:54 Cumulative 356.0 hours Start 2025.06.24 @ 16:29:43 End 2025.06.25 @ 19:38:48 Sessions 2 Manual Loads 0 Difficulty Rogue Special Mode None Game No. 245 Rogue 245 Adventurer 0 Explorer 0 Win Type - Total 27 Types 21/0/4/2/0/0/0/0/0/0 Lore% 90 Gallery% 79 Achievement% 67 Wizard Run 0 Options --------- Layout 0 ASCII 1 Keyboard 1 Movement Arrows Keybinds 0 Fullscreen 2 Font 18/Terminus Map View 76x50 Zoom Use 0% Tactical HUD 1 Map Filters NONE Filters NONE Steam 1 RUN: c1a5cc6c-47aa-403d-8ad3-9e640b67d847